bitfinex-derivatives/quotes_SOLF0:USTF0_20250705
["timestamp","ask_amount","ask_price","bid_price","bid_amount"]
[1751678780789,5.75636671,147.89,147.85,48.13942288]
[1751678780997,5.75636671,147.88,147.85,48.13942288]
[1751678781195,5.75636671,147.87,147.85,48.13942288]
[1751678781392,2.33942288,147.89,147.85,48.13942288]
[1751678781591,12.51721888,147.88,147.85,48.13942288]
[1751678781797,5.75641888,147.87,147.85,48.13942288]
[1751678781998,6.7608,147.88,147.85,48.13942288]
[1751678782200,5.75641393,147.87,147.85,48.13942288]
[1751678782395,6.7608,147.88,147.85,48.13942288]
[1751678782596,5.75659477,147.87,147.85,48.13942288]
[1751678782796,6.7608,147.88,147.85,48.13942288]
[1751678782995,5.75710259,147.87,147.85,48.13942288]
[1751678783197,6.7608,147.88,147.85,48.13942288]
[1751678783497,5.75742285,147.87,147.85,48.13942288]
[1751678783696,6.7608,147.88,147.86,2.33942288]
[1751678783897,5.75885305,147.87,147.86,2.33942288]
[1751678791204,12.51985305,147.87,147.86,2.33942288]
[1751678815425,12.51985305,147.87,147.85,45.8]
[1751678815628,2.33942288,147.88,147.83,2.33942288]
[1751678815933,12.91262389,147.87,147.83,2.33942288]
[1751678816124,6.7622,147.85,147.83,2.33942288]
[1751678822237,5.73186065,147.84,147.83,2.33942288]
[1751678822630,5.73186065,147.84,147.81,45.8]
[1751678822828,10.55797987,147.83,147.81,45.8]
[1751678823030,5.73124335,147.82,147.8,2.33942288]
[1751678823236,6.7635,147.82,147.8,2.33942288]
[1751678831443,6.7638,147.81,147.77,45.82]
[1751678831641,8.48541569,147.86,147.77,45.82]
[1751678831642,2.33942288,147.82,147.78,2.33942288]
[1751678832146,6.7645,147.8,147.77,52.5852]
[1751678832442,6.7645,147.8,147.78,2.33942288]
[1751678833143,6.7645,147.8,147.79,2.33942288]
[1751678834444,6.7639,147.81,147.79,2.33942288]
[1751678835145,6.7639,147.81,147.8,2.33942288]
[1751678835839,2.2392,147.85,147.8,2.33942288]
[1751678836041,8.11449447,147.84,147.8,2.33942288]
[1751678836242,5.77507159,147.83,147.8,2.33942288]
[1751678836445,6.7636,147.82,147.8,2.33942288]
[1751678838345,6.7638,147.81,147.79,2.33942288]
[1751678845258,6.7634,147.82,147.79,9.10392288]
[1751678850664,2.2392,147.85,147.81,2.33942288]
[1751678850863,5.76700663,147.84,147.83,2.33942288]
[1751678851163,48.2337,147.87,147.83,2.33942288]
[1751678851356,5.76943766,147.86,147.85,2.33942288]
[1751678851556,12.53113766,147.86,147.84,2.33942288]
[1751678851758,6.7617,147.86,147.84,2.33942288]
[1751678853167,6.7617,147.86,147.85,2.33942288]
[1751678853463,12.54285493,147.86,147.85,2.33942288]
[1751678859765,6.7617,147.86,147.85,2.33942288]
[1751678859958,12.55837086,147.86,147.85,2.33942288]
[1751678860968,12.55837086,147.86,147.83,6.7625]
[1751678861168,6.7617,147.86,147.85,2.33942288]
[1751678861375,12.55903947,147.86,147.85,2.33942288]
[1751678862981,5.79733947,147.86,147.85,2.33942288]
[1751678866183,5.79733947,147.86,147.85,9.10132288]
[1751678866383,8.61774765,147.9,147.85,9.10132288]
[1751678866574,10.57719406,147.89,147.86,2.33942288]
[1751678866770,5.79694709,147.88,147.86,2.33942288]
[1751678866974,5.79694709,147.87,147.86,2.33942288]
[1751678868783,12.55794709,147.87,147.86,2.33942288]
[1751678874788,12.55794709,147.87,147.85,2.33942288]
[1751678874988,6.761,147.87,147.85,2.33942288]
[1751678879394,6.761,147.87,147.85,9.10132288]
[1751678880891,6.761,147.87,147.86,2.33942288]
[1751678881196,5.80172605,147.87,147.86,2.33942288]
[1751678887395,12.56272605,147.87,147.86,2.33942288]
[1751678890498,12.56272605,147.87,147.84,6.7621]
[1751678890692,6.761,147.87,147.86,2.33942288]
[1751678890896,12.57170941,147.87,147.86,2.33942288]
[1751678891692,6.761,147.87,147.86,2.33942288]
[1751678891902,12.57307656,147.87,147.86,2.33942288]
[1751678893397,6.7618,147.86,147.85,2.33942288]
[1751678893597,12.57387656,147.86,147.84,2.33942288]
[1751678893796,6.7618,147.86,147.84,2.33942288]
[1751678895300,5.82055414,147.85,147.84,2.33942288]
[1751678895802,5.82055414,147.85,147.84,9.10172288]
[1751678898001,5.82055414,147.85,147.84,9.10261042]
[1751678904204,5.82055414,147.85,147.84,2.34031042]
[1751678904400,5.82055414,147.85,147.82,2.34031042]
[1751678904706,17.43210798,147.84,147.82,2.34127728]
[1751678904905,5.82055414,147.83,147.82,2.34127728]
[1751678906403,5.82055414,147.83,147.81,2.34127728]
[1751678906606,5.82055414,147.82,147.81,2.34127728]
[1751678909511,12.58385414,147.82,147.8,45.8]
[1751678909808,5.90959101,147.81,147.8,48.14127728]
[1751678910804,5.90959101,147.81,147.79,2.34127728]
[1751678911008,2.34127728,147.83,147.79,2.34127728]
[1751678911202,6.764,147.81,147.79,2.34127728]
[1751678912511,6.764,147.81,147.8,2.34127728]
[1751678915099,2.34127728,147.84,147.77,6.7654]
[1751678915303,13.02629232,147.83,147.79,2.34127728]
[1751678915503,5.88655652,147.82,147.79,2.34127728]
[1751678915707,5.88655652,147.81,147.79,2.34127728]
[1751678915907,5.88655652,147.8,147.79,2.34127728]
[1751678916405,4.55627728,147.83,147.79,2.34127728]
[1751678916607,6.7645,147.8,147.79,2.34127728]
[1751678929319,6.7645,147.8,147.77,6.7655]
[1751678929525,6.7645,147.8,147.79,2.34127728]
[1751678933823,6.7645,147.8,147.78,2.34127728]
[1751678935223,6.7645,147.8,147.79,2.34127728]
[1751678945933,12.63874649,147.8,147.79,2.34127728]
[1751678946730,12.63874649,147.8,147.77,6.7655]
[1751678946931,12.63874649,147.8,147.79,2.34127728]
[1751678946932,6.7645,147.8,147.79,2.34127728]
[1751678947134,12.64062087,147.8,147.79,2.34127728]
[1751678947934,12.64062087,147.8,147.78,2.34127728]
[1751678948143,6.7645,147.8,147.79,2.34127728]
[1751678948336,12.65146273,147.8,147.77,6.7655]
[1751678948539,6.7645,147.8,147.79,2.34127728]
[1751678948738,12.65146273,147.8,147.79,2.34127728]
[1751678957448,12.65146273,147.8,147.77,6.7655]
[1751678957648,5.88696273,147.79,147.77,6.7655]
[1751678957850,6.7645,147.8,147.78,2.34127728]
[1751678958147,6.7645,147.8,147.79,2.34127728]
[1751678958450,12.66083269,147.8,147.79,2.34127728]
[1751678959350,17.44109179,147.8,147.79,2.34127728]
[1751678962359,17.44139638,147.8,147.79,2.34127728]
[1751678963153,17.44139638,147.8,147.77,6.7655]
[1751678963449,5.89657849,147.79,147.77,6.7655]
[1751678963650,6.7645,147.8,147.78,2.34127728]
[1751678963853,5.89657849,147.79,147.77,6.7655]
[1751678964045,5.89657849,147.78,147.77,6.7655]
[1751678964948,5.89657849,147.78,147.77,9.10677728]
[1751678978572,5.89657849,147.78,147.77,2.34127728]
[1751678979474,12.66167849,147.78,147.77,2.34127728]
[1751678981770,5.89657849,147.78,147.77,2.34127728]
[1751678993684,5.89657849,147.78,147.77,9.10677728]
[1751678995488,6.7642,147.8,147.77,9.10677728]
[1751678995674,6.7642,147.8,147.79,2.34127728]
[1751678995872,12.66289921,147.8,147.79,2.34127728]
[1751679000589,17.4620325,147.8,147.79,2.34127728]
[1751679000786,10.6978325,147.8,147.74,239.62]
[1751679000980,10.70638845,147.79,147.77,2.34251411]
[1751679001181,5.89869921,147.78,147.77,2.34251411]
[1751679001483,5.89869921,147.78,147.74,45.8]
[1751679001683,10.70485962,147.77,147.74,45.8]
[1751679001881,2.34328868,147.78,147.74,45.8]
[1751679002081,8.62023359,147.8,147.73,2.34328868]
[1751679002082,6.7667,147.75,147.73,2.34328868]
[1751679002380,6.7667,147.75,147.74,2.34328868]
[1751679002579,12.66256378,147.75,147.74,2.34328868]
[1751679004489,5.89586378,147.75,147.74,2.34328868]
[1751679005191,6.7662,147.76,147.74,2.34328868]
[1751679005382,6.7662,147.76,147.75,2.34328868]
[1751679005582,12.62353269,147.76,147.75,2.34328868]
[1751679006078,5.85733269,147.76,147.75,2.34328868]
[1751679006391,8.62023359,147.8,147.75,2.34328868]
[1751679006582,5.8587689,147.79,147.78,2.34328868]
[1751679007490,12.6236689,147.79,147.78,2.34328868]
[1751679016196,5.8587689,147.79,147.77,2.34328868]
[1751679016395,5.8587689,147.78,147.77,2.34328868]
[1751679016796,12.6240689,147.78,147.77,2.34328868]
[1751679023096,12.6240689,147.78,147.76,2.34328868]
[1751679023303,5.8587689,147.77,147.76,2.34328868]
[1751679023491,12.6242689,147.77,147.76,2.34328868]
[1751679028306,5.8587689,147.77,147.76,2.34328868]
[1751679033209,5.8587689,147.77,147.75,6.7662]
[1751679033505,6.7653,147.78,147.76,2.34328868]
[1751679033707,5.85772288,147.77,147.75,6.7662]
[1751679033918,6.7653,147.78,147.75,6.7662]
[1751679034102,5.85772656,147.77,147.75,6.7662]
[1751679034306,6.7653,147.78,147.75,6.7662]
[1751679034502,5.85794095,147.77,147.75,6.7662]
[1751679034701,6.7653,147.78,147.75,6.7662]
[1751679034904,5.85794095,147.77,147.75,6.7662]
[1751679035101,6.7653,147.78,147.76,2.34328868]
[1751679035298,5.85922516,147.77,147.75,6.7662]
[1751679035502,6.7653,147.78,147.75,6.7662]
[1751679035705,5.85570023,147.77,147.75,6.7662]
[1751679035901,6.7653,147.78,147.75,6.7662]
[1751679036102,5.85570023,147.77,147.75,6.7662]
[1751679036309,6.7653,147.78,147.75,6.7662]
[1751679036506,6.7653,147.78,147.77,2.34328868]
[1751679036707,12.62127003,147.78,147.77,2.34328868]
[1751679044319,17.4142932,147.78,147.77,2.34328868]
[1751679044921,12.62127003,147.78,147.77,2.34328868]
[1751679048216,6.7655,147.77,147.74,52.5667]
[1751679048620,6.7655,147.77,147.76,2.34328868]
[1751679048815,12.64066664,147.77,147.76,2.34328868]
[1751679049528,5.87516664,147.77,147.74,45.8]
[1751679049835,8.21845532,147.76,147.72,2.34328868]
[1751679050020,5.87516664,147.75,147.72,2.34328868]
[1751679050221,12.64236664,147.74,147.72,2.34328868]
[1751679050527,5.87516664,147.73,147.72,2.34328868]
[1751679051930,5.87516664,147.73,147.71,6.7682]
[1751679052121,6.7672,147.74,147.72,2.34328868]
[1751679052325,6.7672,147.74,147.73,2.34328868]
[1751679052521,12.61368896,147.74,147.73,2.34328868]
[1751679054334,12.61368896,147.74,147.71,6.7682]
[1751679054531,6.7672,147.74,147.73,2.34328868]
[1751679054732,12.61071586,147.74,147.73,2.34328868]
[1751679055634,5.84351586,147.74,147.73,2.34328868]
[1751679056138,6.7657,147.77,147.73,6.767]
[1751679056431,10.62264336,147.76,147.75,2.34328868]
[1751679056633,5.84289768,147.76,147.75,2.34328868]
[1751679057633,5.84289768,147.76,147.74,9.11018868]
[1751679057834,6.7657,147.77,147.75,2.34328868]
[1751679058133,5.83642623,147.76,147.75,2.34328868]
[1751679059235,12.60252623,147.76,147.73,6.7673]
[1751679059433,5.83642623,147.75,147.74,2.34328868]
[1751679064936,12.60827129,147.75,147.74,2.34328868]
[1751679065537,6.7672,147.74,147.7,45.78]
[1751679065737,6.7672,147.74,147.73,2.34328868]
[1751679066328,12.60417957,147.74,147.73,2.34328868]
[1751679066533,12.60417957,147.74,147.72,2.34328868]
[1751679066834,6.7672,147.74,147.72,2.34328868]
[1751679067437,4.62008868,147.77,147.72,2.34328868]
[1751679067632,6.7674,147.73,147.72,2.34328868]
[1751679071236,6.7674,147.73,147.7,52.5485]
[1751679071440,6.7674,147.73,147.7,54.89178868]
[1751679071840,2.34328868,147.74,147.7,48.12328868]
[1751679072136,5.83507195,147.73,147.7,48.12328868]
[1751679072336,2.34328868,147.74,147.7,48.12328868]
[1751679072537,5.82851434,147.73,147.7,48.12328868]
[1751679072739,2.34328868,147.74,147.7,48.12328868]
[1751679073035,5.82851434,147.73,147.7,48.12328868]
[1751679073339,2.34328868,147.74,147.7,48.12328868]
[1751679073640,6.7681,147.72,147.7,48.12328868]
[1751679073843,6.7681,147.72,147.71,2.34328868]
[1751679074444,6.7675,147.73,147.71,2.34328868]
[1751679075243,6.7675,147.73,147.72,2.34328868]
[1751679075444,12.59452116,147.73,147.72,2.34328868]
[1751679076239,5.82702116,147.73,147.72,2.34328868]
[1751679077145,6.7669,147.74,147.72,2.34328868]
[1751679077339,6.7669,147.74,147.73,2.34328868]
[1751679077539,12.58729462,147.74,147.73,2.34328868]
[1751679077846,12.58729462,147.74,147.7,6.7686]
[1751679078048,6.7669,147.74,147.73,2.34328868]
[1751679078244,5.82039462,147.74,147.73,2.34328868]
[1751679078441,6.28429046,147.78,147.73,2.34328868]
[1751679078642,6.28429046,147.78,147.71,45.78]
[1751679078643,10.53758384,147.77,147.75,2.34328868]
[1751679078844,5.82060749,147.76,147.75,2.34328868]
[1751679079440,6.7667,147.75,147.74,2.34328868]
[1751679079639,12.58730749,147.75,147.74,2.34328868]
[1751679080249,12.58730749,147.75,147.72,6.7678]
[1751679080450,6.7667,147.75,147.73,2.34328868]
[1751679081353,5.82144245,147.74,147.73,2.34328868]
[1751679081553,12.58844245,147.74,147.71,52.5482]
[1751679081764,6.767,147.74,147.73,2.34328868]
[1751679082055,12.58844245,147.74,147.71,52.5482]
[1751679082249,6.767,147.74,147.71,52.5482]
[1751679082455,6.767,147.74,147.73,2.34328868]
[1751679082655,12.58872002,147.74,147.73,2.34328868]
[1751679083961,5.82172002,147.74,147.73,2.34328868]
[1751679087857,5.82172002,147.74,147.73,9.11068868]
[1751679088066,45.78,147.79,147.73,2.34328868]
[1751679088365,12.60050324,147.78,147.77,2.34328868]
[1751679090959,5.83540324,147.78,147.77,2.34328868]
[1751679091468,5.83540324,147.78,147.77,9.10878868]
[1751679092868,54.43729046,147.83,147.78,6.7649]
[1751679093058,10.57332838,147.82,147.81,2.34328868]
[1751679093667,5.83913096,147.82,147.81,2.34328868]
[1751679093862,12.60273096,147.82,147.79,3.6588094]
[1751679094066,5.83913096,147.81,147.79,3.6588094]
[1751679094366,6.7636,147.82,147.79,3.6588094]
[1751679094568,5.85211481,147.81,147.79,3.6588094]
[1751679094767,6.7636,147.82,147.79,3.6588094]
[1751679094971,5.85212086,147.81,147.79,3.6588094]
[1751679095173,6.7636,147.82,147.79,3.6588094]
[1751679095573,6.7636,147.82,147.79,10.4234094]
[1751679098671,2.2242,147.84,147.81,3.6588094]
[1751679098974,5.86210634,147.83,147.81,3.6588094]
[1751679099269,6.7626,147.84,147.81,3.6588094]
[1751679099476,5.86038609,147.83,147.81,3.6588094]
[1751679099671,6.7626,147.84,147.81,3.6588094]
[1751679099968,5.86038609,147.83,147.81,3.6588094]
[1751679100168,48.0471,147.87,147.81,3.6588094]
[1751679100360,5.85706725,147.86,147.81,3.6588094]
[1751679100566,5.85706725,147.85,147.81,3.6588094]
[1751679100769,6.762,147.85,147.81,10.4221094]
[1751679101576,6.7616,147.86,147.82,6.7632]
[1751679102376,6.7616,147.86,147.83,3.6588094]
[1751679102676,6.7611,147.87,147.83,10.4215094]
[1751679105569,6.7606,147.88,147.84,6.7622]
[1751679105772,5.86550542,147.87,147.84,6.7622]
[1751679105968,6.7606,147.88,147.84,6.7622]
[1751679106168,5.86550542,147.87,147.84,6.7622]
[1751679106371,6.7606,147.88,147.84,6.7622]
[1751679106571,5.86361315,147.87,147.84,6.7622]
[1751679106777,6.7606,147.88,147.84,6.7622]
[1751679106967,12.62461315,147.87,147.84,6.7622]
[1751679107167,6.761,147.87,147.84,6.7622]
[1751679107577,6.761,147.87,147.83,10.4214094]
[1751679109481,6.761,147.87,147.84,6.7623]
[1751679111677,6.7614,147.86,147.83,6.7626]
[1751679111879,6.7614,147.86,147.83,10.4214094]
[1751679112180,4.78871292,147.9,147.83,3.6588094]
[1751679112382,6.761,147.87,147.84,6.7623]
[1751679113877,6.7607,147.88,147.84,6.7623]
[1751679115781,6.7607,147.88,147.86,2.34014909]
[1751679117279,6.7602,147.89,147.87,2.34014909]
[1751679117486,45.78,147.91,147.88,2.34014909]
[1751679118180,6.7599,147.9,147.88,2.34014909]
[1751679118682,6.7596,147.9,147.88,2.34014909]
[1751679120188,6.7596,147.9,147.86,6.7611]
[1751679120377,6.7601,147.89,147.88,2.34014909]
[1751679120675,6.7601,147.89,147.87,2.34014909]
[1751679121482,6.7598,147.9,147.87,2.34014909]
[1751679121689,6.7598,147.9,147.89,2.34014909]
[1751679121982,6.7905,147.92,147.89,2.34014909]
[1751679122683,6.7905,147.92,147.82,6.9352]
[1751679122684,4.5967,147.92,147.9,2.34014909]
[1751679122873,2.3325,147.92,147.9,2.34014909]
[1751679123575,9.0913,147.92,147.9,2.34014909]
[1751679124679,2.3325,147.92,147.91,2.34014909]
[1751679124886,45.9,147.95,147.91,9.09924909]
[1751679125182,5.87809641,147.94,147.92,2.34014909]
[1751679125385,45.9,147.95,147.92,2.34014909]
[1751679125586,6.89214909,147.96,147.92,2.34014909]
[1751679125782,5.87802287,147.95,147.92,2.34014909]
[1751679125983,6.89214909,147.96,147.92,2.34014909]
[1751679126183,5.87802287,147.95,147.92,2.34014909]
[1751679126383,6.89214909,147.96,147.92,2.34014909]
[1751679126583,6.7579,147.94,147.92,2.34014909]
[1751679127786,6.7579,147.94,147.91,10.41236655]
[1751679127982,6.7579,147.94,147.91,3.65326655]
[1751679130189,6.7579,147.94,147.91,10.41236655]
[1751679130385,6.7579,147.94,147.91,6.7591]
[1751679130585,6.7579,147.94,147.91,10.41236655]
[1751679131387,6.7575,147.95,147.92,6.7586]
[1751679131587,2.4279,147.97,147.93,3.65326655]
[1751679131783,5.91473772,147.96,147.93,3.65326655]
[1751679131979,2.4279,147.97,147.93,10.41136655]
[1751679132182,5.91526642,147.96,147.93,10.41136655]
[1751679132382,9.1846,147.97,147.93,10.41136655]
[1751679132585,5.91588766,147.96,147.93,10.41136655]
[1751679132784,9.1846,147.97,147.93,10.41136655]
[1751679133089,5.91653743,147.96,147.93,10.41136655]
[1751679133288,9.1846,147.97,147.93,10.41136655]
[1751679133489,6.7561,147.98,147.95,3.65326655]
[1751679133691,5.92865262,147.97,147.95,3.65326655]
[1751679133883,6.7561,147.98,147.95,3.65326655]
[1751679134078,6.7557,147.99,147.97,3.65326655]
[1751679135089,6.7559,147.98,147.97,3.65326655]
[1751679136788,6.24698193,148.03,147.97,3.65326655]
[1751679136987,10.87126201,148.02,147.97,3.65326655]
[1751679137193,6.24698193,148.03,147.97,3.65326655]
[1751679137194,6.7556,147.99,147.97,3.65326655]
[1751679139294,6.7565,147.97,147.92,6.9056]
[1751679139495,6.7565,147.97,147.95,3.65326655]
[1751679140793,6.7561,147.98,147.95,3.65326655]
[1751679141097,6.7561,147.98,147.97,3.65326655]
[1751679142593,6.7557,147.99,147.97,3.65326655]
[1751679143099,6.7551,148.0,147.97,3.65326655]
[1751679143596,7.0441,148.04,147.97,3.65326655]
[1751679143897,10.89750842,148.03,147.97,3.65326655]
[1751679144096,10.89750842,148.02,147.97,3.65326655]
[1751679144299,6.7554,148.0,147.97,3.65326655]
[1751679145402,6.7554,148.0,147.97,10.40966655]
[1751679149196,6.7556,147.99,147.98,3.65326655]
[1751679149498,4.91082141,148.03,147.98,3.65326655]
[1751679149697,5.93944499,148.02,147.98,3.65326655]
[1751679149903,7.0441,148.04,147.98,3.65326655]
[1751679150093,10.85064542,148.03,147.98,3.65326655]
[1751679150294,5.93944499,148.02,147.98,3.65326655]
[1751679150490,7.0441,148.04,147.98,3.65326655]
[1751679150702,6.7551,148.0,147.98,3.65326655]
[1751679151699,6.7547,148.01,147.98,10.40916655]
[1751679153199,2.3265,148.04,148.0,3.65326655]
[1751679153703,6.7537,148.03,148.0,10.40806655]
[1751679158206,6.753,148.05,148.02,10.40706655]
[1751679158406,6.753,148.05,148.04,3.65326655]
[1751679159107,6.753,148.05,148.02,6.7538]
[1751679159401,6.753,148.05,148.04,3.65326655]
[1751679160711,6.7526,148.06,148.04,3.65326655]
[1751679161209,6.7528,148.05,148.02,6.7539]
[1751679161408,6.7528,148.05,148.04,3.65326655]
[1751679162310,6.7525,148.06,148.04,3.65326655]
[1751679162509,2.2453,148.08,148.03,3.65326655]
[1751679162710,10.86240757,148.07,148.03,3.65326655]
[1751679162911,17.61510757,148.06,148.03,3.65326655]
[1751679163108,6.7527,148.06,148.03,3.65326655]
[1751679163309,6.7527,148.06,148.03,10.40666655]
[1751679163808,6.7527,148.06,148.03,3.65326655]
[1751679164510,6.7527,148.06,148.03,10.40676655]
[1751679165713,6.7528,148.05,148.03,3.65326655]
[1751679166013,2.2453,148.08,148.03,3.65326655]
[1751679166214,6.7525,148.06,148.03,3.65326655]
[1751679167611,6.7525,148.06,148.03,10.40686655]
[1751679168213,6.752,148.07,148.04,6.7531]
[1751679168514,46.14,148.1,148.05,3.65326655]
[1751679168707,10.91838626,148.09,148.05,3.65326655]
[1751679168911,17.67008626,148.08,148.05,10.40576655]
[1751679169110,6.7517,148.08,148.05,10.40576655]
[1751679169313,5.93224589,148.07,148.05,10.40576655]
[1751679169512,6.7517,148.08,148.05,10.40576655]
[1751679169714,5.93224589,148.07,148.05,10.40576655]
[1751679170043,6.7517,148.08,148.05,10.40576655]
[1751679170172,10.93019755,148.07,148.05,10.40576655]
[1751679170373,6.7517,148.08,148.05,10.40576655]
[1751679170619,10.93219912,148.07,148.05,10.40576655]
[1751679170919,6.7517,148.08,148.05,10.40576655]
[1751679171216,10.93219912,148.07,148.05,10.40576655]
[1751679171427,6.7517,148.08,148.05,10.40576655]
[1751679171613,10.93419737,148.07,148.05,10.40576655]
[1751679171814,6.7517,148.08,148.05,10.40576655]
[1751679172010,10.93419737,148.07,148.05,10.40576655]
[1751679172210,6.7517,148.08,148.05,10.40576655]
[1751679172419,5.93485448,148.07,148.05,10.40576655]
[1751679172622,6.7517,148.08,148.05,10.40576655]
[1751679172831,5.94557519,148.07,148.05,10.40576655]
[1751679173122,6.7517,148.08,148.05,10.40576655]
[1751679173330,10.94815055,148.07,148.05,10.40576655]
[1751679173524,6.7517,148.08,148.05,10.40576655]
[1751679173721,5.94689335,148.07,148.05,6.7525]
[1751679173919,6.7517,148.08,148.06,2.33353545]
[1751679174121,6.7517,148.08,148.07,2.33353545]
[1751679174325,17.70154443,148.08,148.07,2.33353545]
[1751679177833,6.7519,148.07,148.04,6.7531]
[1751679178031,8.58732975,148.11,148.06,2.33353545]
[1751679178232,10.9869859,148.1,148.07,2.33353545]
[1751679178432,10.9869859,148.09,148.07,2.33353545]
[1751679178623,10.9869859,148.08,148.07,2.33353545]
[1751679179428,10.9869859,148.08,148.01,48.3573]
[1751679179733,10.98768821,148.07,148.05,2.33353545]
[1751679180024,10.98768821,148.06,148.05,2.33353545]
[1751679180226,10.98768821,148.06,148.01,46.14]
[1751679180425,8.28855925,148.05,148.02,2.33353545]
[1751679180623,10.98900956,148.04,148.01,48.47353545]
[1751679180932,4.54493545,148.05,148.01,48.47353545]
[1751679181133,10.98851976,148.04,148.01,48.47353545]
[1751679181432,4.54493545,148.05,148.01,48.47353545]
[1751679181630,6.7539,148.03,148.01,48.47353545]
[1751679181831,6.7539,148.03,148.01,46.14]
[1751679182032,2.2114,148.05,148.01,46.14]
[1751679182335,5.95519963,148.04,148.01,46.14]
[1751679182533,2.2114,148.05,148.01,46.14]
[1751679182723,5.95614039,148.04,148.01,46.14]
[1751679182927,2.2114,148.05,148.01,46.14]
[1751679183130,5.95614039,148.04,148.01,46.14]
[1751679183334,6.7541,148.03,148.01,46.14]
[1751679184035,6.7541,148.02,148.01,46.14]
[1751679184331,5.93486684,148.02,147.97,49.88911256]
[1751679184633,2.2114,148.05,147.99,3.64911256]
[1751679184927,10.97214237,148.04,147.99,3.64911256]
[1751679185131,5.9351062,148.03,147.99,3.64911256]
[1751679185331,2.2114,148.05,147.99,10.40441256]
[1751679185534,10.98545562,148.04,147.99,10.40441256]
[1751679185734,5.94774328,148.03,147.99,10.40441256]
[1751679186030,2.2114,148.05,147.99,10.40441256]
[1751679186232,10.98534784,148.04,147.99,10.40441256]
[1751679186435,5.9476864,148.03,147.99,10.40441256]
[1751679186631,6.7542,148.02,147.99,10.40441256]
[1751679187130,12.11430686,148.05,147.97,52.9963]
[1751679187331,19.52927736,148.04,147.97,56.64541256]
[1751679187527,10.98708306,148.03,147.97,56.64541256]
[1751679187721,10.98708306,148.02,147.97,56.64541256]
[1751679187927,5.94911659,148.01,147.97,56.64541256]
[1751679188131,2.2566,148.03,147.97,56.64541256]
[1751679188330,10.92475291,148.02,147.97,56.64541256]
[1751679188534,6.7553,148.0,147.97,56.64541256]
[1751679189034,2.2566,148.03,147.98,6.7559]
[1751679189336,6.7549,148.01,147.99,3.64911256]
[1751679205752,6.7549,148.01,148.0,2.33554179]
[1751679207348,2.2884,148.04,148.0,2.33554179]
[1751679207559,5.93684919,148.03,148.02,2.33554179]
[1751679208542,12.69074919,148.03,148.02,2.33554179]
[1751679210055,6.7539,148.03,148.02,2.33554179]
[1751679210255,12.69286206,148.03,148.02,2.33554179]
[1751679212749,6.7537,148.03,148.02,2.33554179]
[1751679214358,12.69521437,148.03,148.02,2.33554179]
[1751679214954,12.69521437,148.03,147.99,6.7554]
[1751679214955,46.08,148.06,147.99,6.7554]
[1751679215160,13.26225934,148.05,148.0,2.33554179]
[1751679215458,10.92671755,148.04,148.0,2.33554179]
[1751679215661,10.92671755,148.03,148.01,2.33554179]
[1751679215857,5.94056362,148.02,148.01,2.33554179]
[1751679216554,12.69466362,148.02,148.01,2.33554179]
[1751679217460,17.69206214,148.02,148.01,2.33554179]
[1751679217660,6.7541,148.02,148.01,2.33554179]
[1751679218362,6.7538,148.03,148.01,2.33554179]
[1751679218563,6.7538,148.03,148.02,2.33554179]
[1751679219360,12.70154496,148.03,148.02,2.33554179]
[1751679219763,12.70154496,148.03,148.01,3.648263]
[1751679219962,6.7538,148.03,148.01,3.648263]
[1751679222766,52.3337943,148.06,148.01,3.648263]
[1751679222972,17.197834,148.05,148.01,3.648263]
[1751679223154,10.9440397,148.04,148.01,3.648263]
[1751679223359,17.6980397,148.03,148.01,3.648263]
[1751679223556,10.9440397,148.02,148.01,3.648263]
[1751679224766,5.95055361,148.02,148.01,3.648263]
[1751679231968,5.95055361,148.02,148.01,10.402863]
[1751679233364,6.7529,148.05,148.02,6.7538]
[1751679233672,5.96582869,148.04,148.02,6.7538]
[1751679233870,5.96582869,148.03,148.02,6.7538]
[1751679235065,6.7525,148.06,148.03,6.7533]
[1751679235268,10.96813583,148.05,148.03,10.401563]
[1751679235559,5.96509482,148.04,148.03,10.401563]
[1751679236375,6.7525,148.06,148.03,10.401563]
[1751679236571,5.96363399,148.05,148.03,10.401563]
[1751679236776,6.7525,148.06,148.03,10.401563]
[1751679237076,5.96363399,148.05,148.03,10.401563]
[1751679237267,6.7525,148.06,148.03,10.401563]
[1751679237467,5.97341499,148.05,148.03,10.401563]
[1751679237667,6.7525,148.06,148.03,10.401563]
[1751679237877,5.97341499,148.05,148.03,10.401563]
[1751679238075,6.7525,148.06,148.03,10.401563]
[1751679238274,5.97341474,148.05,148.03,10.401563]
[1751679238477,6.7525,148.06,148.03,10.401563]